Cogmind - Beta 10.2 @@@ ROGUE MODE // 2021.05.17 @ 21:33:17 Player: mat Result: Destroyed by S-27 Virus with Autogun Performance ------------- Evolutions (3) 1500 Regions Visited (7) 1400 Robots Destroyed (21) 105 Value Destroyed (409) 409 Prototype IDs (0) 0 Alien Tech Used (0) 0 Bonus (0) 0 TOTAL SCORE: 3414 Bonus ------- None Cogmind --------- Core Integrity 0/700 Matter 281/300 Energy 98/100 System Corruption 6% Temperature Cool (0) Movement Core (50) Location -7/Lower Caves Parts ------- > --- POWER (3) -------- (None) > --- PROPULSION (5) --- (None) > --- UTILITY (3) ------ Enhanced Optical Array > --- WEAPON (2) ------- Scythe > --- INVENTORY (4) ---- Enhanced Nuclear Core Peak State ------------ > --- POWER ------------ Light Ion Engine Light Ion Engine > --- PROPULSION ------- Flight Unit Flight Unit VTOL Module Cesium-ion Thruster > --- UTILITY ---------- Advanced Sensor Array Signal Interpreter Hacking Suite > --- WEAPON ----------- Scythe > --- INVENTORY -------- (None) [Rating: 19] Favorites ----------- Power Light Ion Engine Engine Light Ion Engine Propulsion Flight Unit Wheel Compact Wheel Flight Unit Flight Unit Utility Small Storage Unit Device Advanced Sensor Array Storage Small Storage Unit Processor Signal Interpreter Hackware Hacking Suite Weapon Light Assault Rifle Energy Gun Small Laser Ballistic Gun Light Assault Rifle Slashing Weapon Scythe Build | -11 -10 -9 -8 -7 -7 -7 -7 ------- Run | Scr Mat Mat Mat Fac Was Fac Low Slots Evolved 6 | . . 2 2 2 . . . Power 2 | . . . 1 1 . . . Propulsion 3 | . . 1 1 1 . . . Utility 1 | . . 1 . . . . . Weapon . | . . . . . . . . Parts Attached 42 | 4 13 13 5 3 . 3 1 Power 7 | 1 2 2 2 . . . . Engine 7 | 1 2 2 2 . . . . Core . | . . . . . . . . Reactor . | . . . . . . . . Propulsion 14 | . 5 5 2 2 . . . Treads . | . . . . . . . . Leg . | . . . . . . . . Wheel 2 | . 2 . . . . . . Hover . | . . . . . . . . Flight 12 | . 3 5 2 2 . . . Utility 8 | 1 1 2 1 1 . 1 1 Device 3 | . . 2 . . . 1 . Storage 1 | 1 . . . . . . . Processor 3 | . 1 . . 1 . . 1 Hackware 1 | . . . 1 . . . . Protection . | . . . . . . . . Artifact . | . . . . . . . . Weapon 13 | 2 5 4 . . . 2 . Energy Gun 5 | 2 3 . . . . . . Energy Cannon . | . . . . . . . . Ballistic Gun 5 | . 2 3 . . . . . Ballistic Cannon . | . . . . . . . . Launcher . | . . . . . . . . Special Weapon . | . . . . . . . . Impact Weapon . | . . . . . . . . Slashing Weapon 3 | . . 1 . . . 2 . Piercing Weapon . | . . . . . . . . Special Melee Weapon . | . . . . . . . . Unidentified Prototypes . | . . . . . . . . Parts Lost 25 | . 7 5 3 6 1 3 . Power 5 | . 1 1 1 2 . . . Propulsion 10 | . 1 2 2 4 1 . . Utility 3 | . . . . . . 3 . Weapon 7 | . 5 2 . . . . . Highest Loss Streak 6 | . 4 3 3 6 1 2 . Average Slot Usage (%) 54 | . 78 85 87 64 22 17 10 Engine 7 | . 13 10 16 13 . . . Wheel 6 | . 19 . . . . . . Flight 10 | . 5 30 36 27 3 . . Device 3 | . . 7 9 7 3 4 . Storage 6 | . 14 10 . . . . . Processor 4 | . 1 11 9 7 7 4 3 Hackware 2 | . . . 7 7 7 4 . Energy Gun 5 | . 16 . . . . . . Ballistic Gun 4 | . 6 14 . . . . . Slashing Weapon 2 | . . . 9 . . 2 7 Naked Turns 73 | . . . . . . 73 . Heaviest Build 12 | 12 12 10 9 9 1 3 2 Greatest Support 26 | 3 26 13 13 19 5 3 3 Greatest Overweight (x) 3 | 3 3 1 . 1 . . . Average Overweight (x) . | 1 . . . . . . . Largest Inventory Capacity 6 | 6 6 6 4 4 4 4 4 Average Capacity 4 | 5 6 5 4 4 4 4 4 Most Carried 6 | 4 6 6 3 2 3 3 2 Average Carried 2 | 3 4 3 1 1 2 2 1 Final Capacity 6 | 6 6 4 4 4 4 4 4 Final Carried 4 | 4 4 4 1 1 3 2 1 Class Distribution -------------------- 68% | Mutant 29% | Scavenger-Mutant Dominant Class ---------------- Mutant | -10/Materials Scavenger-Mutant | -9/Materials Scavenger-Mutant | -8/Materials Scavenger-Mutant | -7/Factory Mutant | -7/Waste Mutant | -7/Factory Mutant | -7/Lower Caves Resources | -11 -10 -9 -8 -7 -7 -7 -7 ----------- Run | Scr Mat Mat Mat Fac Was Fac Low Matter Collected 640 | 240 105 158 . 94 . . 43 Remotely . | . . . . . . . . Salvage Created 509 | . 241 218 . . . . 50 Parts 45 | . 17 24 . . . . 4 Haulers Intercepted . | . . . . . . . . Recyclers Shooed . | . . . . . . . . Parts Field Recycled . | . . . . . . . . Retrieved Matter . | . . . . . . . . Parts Self-Destructed 4 | . . . . . . . 4 Prevented . | . . . . . . . . Kills | -11 -10 -9 -8 -7 -7 -7 -7 ------- Run | Scr Mat Mat Mat Fac Was Fac Low Combat Hostiles Destroyed 19 | . 9 9 . . . . 1 Melee 1 | . . . . . . . 1 Guns 18 | . 9 9 . . . . . Classes Destroyed 5 | . 3 1 . . . . 1 Watcher 2 | . 2 . . . . . . Swarmer 13 | . 6 7 . . . . . Grunt 3 | . 3 . . . . . . Sentry 2 | . . 2 . . . . . Hunter 1 | . . . . . . . 1 Best Kill Streak 4 | . 3 4 . . . . 1 Combat Bots Only 4 | . 3 4 . . . . 1 Max Kills in Single Turn 1 | . 1 1 . . . . 1 Gunslinging . | . . . . . . . . Exploded . | . . . . . . . . Melee 1 | . . . . . . . 1 Uniques/NPCs Destroyed . | . . . . . . . . Combat | -11 -10 -9 -8 -7 -7 -7 -7 -------- Run | Scr Mat Mat Mat Fac Was Fac Low Damage Taken 2269 | . 482 568 278 223 46 576 96 Core 1147 | . 101 208 130 83 46 497 82 Absorbed by Shields . | . . . . . . . . Core Remaining (%) 70 | 100 59 48 76 . . . . Volleys Fired 98 | . 48 50 . . . . . Largest 2 | . 2 2 . . . . . Hottest 90 | . 90 40 . . . . . Shots Fired 150 | . 83 67 . . . . . Gun 150 | . 83 67 . . . . . Cannon . | . . . . . . . . Launcher . | . . . . . . . . Special . | . . . . . . . . Kinetic 93 | . 26 67 . . . . . Thermal 57 | . 57 . . . . . . Explosive . | . . . . . . . . Electromagnetic . | . . . . . . . . Robot Hit Streak 9 | . 5 9 . . . . . Robot Miss Streak 5 | . 3 5 . . . . . Penetration Max . | . . . . . . . . Secondary Targets 1 | . . 1 . . . . . Max Gunslinging Chain 1 | . . 1 . . . . . Shots Hit Robots 95 | . 47 44 . . . 2 2 Core Hits 38 | . 19 18 . . . . 1 Critical Hits 3 | . . 2 . . . 1 . Critical Kills 1 | . . 1 . . . . . Critical Parts Destroyed 2 | . . 1 . . . 1 . Melee Attacks 12 | . . . . . . 9 3 Impact . | . . . . . . . . Slashing 12 | . . . . . . 9 3 Piercing . | . . . . . . . . Sneak Attacks 1 | . . . . . . 1 . Combat Hostiles . | . . . . . . . . Follow-up Attacks . | . . . . . . . . Damage Inflicted 991 | . 464 323 . . . 142 62 Guns 784 | . 461 323 . . . . . Cannons . | . . . . . . . . Explosions . | . . . . . . . . Melee 204 | . . . . . . 142 62 Ramming 3 | . 3 . . . . . . Kinetic 453 | . 130 323 . . . . . Thermal 331 | . 331 . . . . . . Explosive . | . . . . . . . . Electromagnetic . | . . . . . . . . Impact . | . . . . . . . . Slashing 204 | . . . . . . 142 62 Piercing . | . . . . . . . . Highest Corruption 6 | . . . . . 5 6 6 Average Corruption 5 | . . . . . 5 5 6 Corruption Purged . | . . . . . . . . Effects 10 | . . . . . . 7 3 Message Errors 2 | . . . . . . 1 1 Matter Fused 4 | . . . . . . 3 1 Heat Flow Errors 1 | . . . . . . 1 . Energy Discharges 1 | . . . . . . 1 . Data Loss (major) 1 | . . . . . . . 1 Targeting Errors 1 | . . . . . . 1 . Overload Shots . | . . . . . . . . Overflow Damage 80 | . . . . . . 80 . Projectiles . | . . . . . . . . Explosions . | . . . . . . . . Melee 80 | . . . . . . 80 . Knockbacks . | . . . . . . . . Impact . | . . . . . . . . Kinetic . | . . . . . . . . Secondary . | . . . . . . . . Self-Inflicted Damage 1 | . 1 . . . . . . Shots . | . . . . . . . . Rammed 1 | . 1 . . . . . . Targets Rammed 1 | . 1 . . . . . . Kicked . | . . . . . . . . Crushed . | . . . . . . . . Highest Temperature 260 | . 260 18 9 6 . 163 . Average Temperature 90 | . 101 9 7 4 . 95 . Received Heat Transfer 618 | . 57 96 135 78 . 252 . Siege Activations . | . . . . . . . . Robots Corrupted . | . . . . . . . . Combat Hostiles . | . . . . . . . . Parts Fried . | . . . . . . . . Impact Corruptions . | . . . . . . . . Robots Melted . | . . . . . . . . Combat Hostiles . | . . . . . . . . Parts Melted 4 | . 4 . . . . . . Heat Transferred 832 | . 832 . . . . . . Parts Sabotaged . | . . . . . . . . Parts Stolen . | . . . . . . . . Parts Stripped . | . . . . . . . . Power Chain Reactions . | . . . . . . . . Missiles Intercepted . | . . . . . . . . Alert | -11 -10 -9 -8 -7 -7 -7 -7 ------- Run | Scr Mat Mat Mat Fac Was Fac Low Peak Influence 419 | . 192 419 196 102 34 207 . Initial 176 | . . 9 176 52 14 23 . Average 85 | . 67 188 160 57 23 54 . Maximum Alert Level 2 | . . 2 . . . 1 . Low Security (%) 92 | 100 100 63 100 100 100 97 . Level 1 5 | . . 24 . . . 2 . Level 2 2 | . . 12 . . . . . Level 3 . | . . . . . . . . Level 4 . | . . . . . . . . Level 5 . | . . . . . . . . High Security . | . . . . . . . . Max Security . | . . . . . . . . Squads Dispatched 8 | . 1 1 3 1 . 2 . Investigation 1 | . . . . 1 . . . Extermination 1 | . . . . . . 1 . Reinforcement 6 | . 1 1 3 . . 1 . Assault . | . . . . . . . . Garrison . | . . . . . . . . Intercept . | . . . . . . . . Construction Impeded . | . . . . . . . . Haulers Reinforced . | . . . . . . . . Stealth | -11 -10 -9 -8 -7 -7 -7 -7 --------- Run | Scr Mat Mat Mat Fac Was Fac Low Distress Signals 6 | . 4 1 1 . . . . Communications Jammed . | . . . . . . . . Distress Signals . | . . . . . . . . Times Spotted 83 | . 20 21 14 3 5 16 4 Peak Tracking Total 12 | . 6 7 12 4 5 10 1 Tactical Retreats 12 | . . 5 1 . . 6 . Traps | -11 -10 -9 -8 -7 -7 -7 -7 ------- Run | Scr Mat Mat Mat Fac Was Fac Low Traps Triggered 2 | . . . . 1 . 1 . Indirectly . | . . . . . . . . Trap Hack Attempts . | . . . . . . . . Triggered . | . . . . . . . . Disarmed . | . . . . . . . . Reprogrammed . | . . . . . . . . Reused . | . . . . . . . . Traps Extracted . | . . . . . . . . Installed . | . . . . . . . . Triggered . | . . . . . . . . Machines | -11 -10 -9 -8 -7 -7 -7 -7 ---------- Run | Scr Mat Mat Mat Fac Was Fac Low Machines Disabled . | . . . . . . . . Max in Single Turn . | . . . . . . . . Machines Sabotaged . | . . . . . . . . Garrisons Compromised . | . . . . . . . . Overloaded Fab Kills . | . . . . . . . . Fab Network Shutdowns . | . . . . . . . . Hacking | -11 -10 -9 -8 -7 -7 -7 -7 --------- Run | Scr Mat Mat Mat Fac Was Fac Low Machines Accessed 4 | . . . 1 2 . 1 . Terminals 4 | . . . 1 2 . 1 . Fabricators . | . . . . . . . . Repair Stations . | . . . . . . . . Recycling Units . | . . . . . . . . Scanalyzers . | . . . . . . . . Garrison Access . | . . . . . . . . Total Hacks 10 | . . . 2 6 . 2 . Successful 5 | . . . 1 2 . 2 . Failed 5 | . . . 1 4 . . . Catastrophic 1 | . . . . 1 . . . Database Lockouts . | . . . . . . . . Manual 3 | . . . 2 1 . . . Terminals 10 | . . . 2 6 . 2 . Fabricators . | . . . . . . . . Repair Stations . | . . . . . . . . Recycling Units . | . . . . . . . . Scanalyzers . | . . . . . . . . Garrison Access . | . . . . . . . . Terminal Hacks 5 | . . . 1 2 . 2 . Robot Analysis 1 | . . . . 1 . . . Alert Level 2 | . . . . 1 . 1 . Unreport Threat 1 | . . . 1 . . . . Hauler Manifests 1 | . . . . . . 1 . Fabricator Hacks . | . . . . . . . . Repair Station Hacks . | . . . . . . . . Recycling Unit Hacks . | . . . . . . . . Scanalyzer . | . . . . . . . . Garrison Access Hacks . | . . . . . . . . Unauthorized Hacks . | . . . . . . . . Terminals . | . . . . . . . . Fabricators . | . . . . . . . . Repair Stations . | . . . . . . . . Recycling Units . | . . . . . . . . Scanalyzers . | . . . . . . . . Garrison Access . | . . . . . . . . Data Cores Recovered . | . . . . . . . . Used . | . . . . . . . . Hacking Detections 1 | . . . . 1 . . . Full Trace Events 1 | . . . . 1 . . . Feedback Events . | . . . . . . . . Feedback Blocked . | . . . . . . . . Robot Schematics Acquired . | . . . . . . . . Robots Built . | . . . . . . . . Matter . | . . . . . . . . Time . | . . . . . . . . Total Robot Build Rating . | . . . . . . . . Part Schematics Acquired . | . . . . . . . . Parts Built . | . . . . . . . . Matter . | . . . . . . . . Time . | . . . . . . . . Total Part Build Rating . | . . . . . . . . Parts Repaired . | . . . . . . . . Time . | . . . . . . . . Parts Recycled . | . . . . . . . . Recycled Matter . | . . . . . . . . Retrieved Matter . | . . . . . . . . Retrieved Components . | . . . . . . . . Parts Scanalyzed . | . . . . . . . . Part Schematics Acquired . | . . . . . . . . Parts Damaged . | . . . . . . . . Bothacking | -11 -10 -9 -8 -7 -7 -7 -7 ------------ Run | Scr Mat Mat Mat Fac Was Fac Low Used RIF Installer . | . . . . . . . . Robots Hacked . | . . . . . . . . Non-combat . | . . . . . . . . Combat . | . . . . . . . . Robot Hacks Applied . | . . . . . . . . Relay Couplers Released . | . . . . . . . . Robots Rewired . | . . . . . . . . Allies Hacked . | . . . . . . . . Hacks Repelled . | . . . . . . . . Allies | -11 -10 -9 -8 -7 -7 -7 -7 -------- Run | Scr Mat Mat Mat Fac Was Fac Low Total Allies . | . . . . . . . . Largest Group . | . . . . . . . . Highest-Rated Group . | . . . . . . . . Highest-Rated Ally . | . . . . . . . . Total Orders . | . . . . . . . . Ally Attacks . | . . . . . . . . Total Damage . | . . . . . . . . Kills . | . . . . . . . . Allies Corrupted . | . . . . . . . . Allies Melted . | . . . . . . . . Intel | -11 -10 -9 -8 -7 -7 -7 -7 ------- Run | Scr Mat Mat Mat Fac Was Fac Low Robot Analysis Total 1 | . . . . 1 . . . Derelict Logs Recovered 2 | . . . . . . . 2 Drone Launches . | . . . . . . . . Drone Recoveries . | . . . . . . . . Exploration | -11 -10 -9 -8 -7 -7 -7 -7 ------------- Run | Scr Mat Mat Mat Fac Was Fac Low Turns Passed 1548 | 78 461 250 83 105 35 383 153 Spaces Moved 2280 | 52 453 262 223 252 73 676 289 Core 1075 | 52 3 . . 18 37 676 289 Treads . | . . . . . . . . Legs . | . . . . . . . . Wheels 237 | . 237 . . . . . . Hover . | . . . . . . . . Flight 968 | . 213 262 223 234 36 . . Fastest Speed 31 | 50 37 34 34 31 40 50 50 Average Speed 50 | 132 66 35 34 34 45 50 50 Slowest Speed 200 | 200 200 117 37 100 50 50 50 Overloaded Moves . | . . . . . . . . Propulsion Burnouts . | . . . . . . . . Robots Hopped 11 | . 3 2 4 2 . . . Cave-ins Triggered . | . . . . . . . . Exploration Rate (%) 34 | 4 63 33 25 8 70 21 50 Regions Visited 7 Branch Regions 1 Pre-discovered Areas 1 | . . . . . . . 1 Known Exits Taken 3 | . 1 1 1 . . . . Unknown Exits Taken 2 | 1 . . . . . 1 . Scrap Searched 1 | . . . . . . . 1 Spaces Dug 6 | . . . . . . 6 . Terrain Destroyed 6 | . . . . . . 6 . Melee 6 | . . . . . . 6 . Projectile . | . . . . . . . . AOE . | . . . . . . . . Terrain Rammed . | . . . . . . . . Walls Destroyed . | . . . . . . . . Machines Disabled . | . . . . . . . . Actions | -11 -10 -9 -8 -7 -7 -7 -7 --------- Run | Scr Mat Mat Mat Fac Was Fac Low Total 2524 | 60 531 367 225 267 74 707 293 Wait 43 | . 4 25 . 11 . 3 . Move 2252 | 51 446 257 214 248 72 675 289 Hop 11 | . 3 2 4 2 . . . Pick Up 35 | 5 12 11 2 2 2 1 . Fast Attach 5 | 3 . 2 . . . . . Attach 31 | 1 11 8 5 2 . 3 1 Detach 3 | . 1 . . 1 . 1 . Swap 6 | . 2 3 . 1 . . . Drop 12 | . 3 9 . . . . . Fire 98 | . 48 50 . . . . . Melee 12 | . . . . . . 9 3 Ram 1 | . 1 . . . . . . Kick . | . . . . . . . . Crush . | . . . . . . . . Escape Stasis 15 | . . . . . . 15 . Rewire . | . . . . . . . . Trap . | . . . . . . . . Miscellaneous . | . . . . . . . . Route ------- -11/Scrapyard -10/Materials (discovered 3 exits: *Mat x2 / [*Min]) -9/Materials (discovered 2 exits: *Mat / [*Min]) -8/Materials -7/Factory -7/Waste -7/Factory -7/Lower Caves History --------- Turn | Location | Event 2 | -11/Scrapyard | Met Revision 17 17 | -11/Scrapyard | Discovered new exit (range 16) 79 | -11/Scrapyard | Entered Materials 113 | -10/Materials | Discovered new exit (range 6) 177 | -10/Materials | Discovered new exit (range 11) 315 | -10/Materials | Build established: Mutant 354 | -10/Materials | Lost 3 parts (3w) 398 | -10/Materials | Discovered new exit (range 8) 400 | -10/Materials | Lost 4 parts (1p1n2w) 540 | -10/Materials | Identified exit to Materials 540 | -10/Materials | Entered another Materials area 540 | -9/Materials | Evolved 2 slots: Propulsion x1, Utility x1 632 | -9/Materials | Lost 3 parts (1p1n1w) 769 | -9/Materials | Discovered new exit (range 11) 770 | -9/Materials | Core integrity fell below 50% 773 | -9/Materials | Discovered new exit (range 13) 790 | -9/Materials | Identified exit to Materials 790 | -9/Materials | Entered another Materials area 790 | -8/Materials | Evolved 2 slots: Power x1, Propulsion x1 867 | -8/Materials | Discovered new exit (range 16) 872 | -8/Materials | Identified exit to Factory 873 | -8/Materials | Entered Factory 873 | -7/Factory | Evolved 2 slots: Power x1, Propulsion x1 901 | -7/Factory | Lost 3 parts (1p2n) 978 | -7/Factory | Sucked down chute 978 | -7/Factory | Entered Waste 985 | -7/Waste | Spotted C-40 Crusher 986 | -7/Waste | Spotted C-40 Crusher 988 | -7/Waste | Spotted C-40 Crusher 993 | -7/Waste | EMP discharged 993 | -7/Waste | Spotted C-40 Crusher 994 | -7/Waste | Lost 6 parts (2p4n) 994 | -7/Waste | Crushed by Compactor (1 part destroyed, 1 dropped) 1002 | -7/Waste | Spotted C-40 Crusher 1005 | -7/Waste | Discovered new exit (range 13) 1005 | -7/Waste | Spotted C-40 Crusher 1012 | -7/Waste | Identified exit to Factory 1013 | -7/Waste | Entered Factory 1302 | -7/Factory | Core integrity fell below 50% 1346 | -7/Factory | Core integrity fell below 20% 1394 | -7/Factory | Discovered new exit (range 5) 1396 | -7/Factory | Entered Lower Caves 1435 | -7/Lower Caves | Learned Factory garrison access intel 1523 | -7/Lower Caves | Learned location of Extension (-6) 1549 | -7/Lower Caves | Destroyed by S-27 Virus with Autogun Last Messages --------------- System corrupted: Matter fused (-5). System corrupted: Scythe targeting data glitched. EXIT=FOUND LOCATION=UNKNOWN GOAL=ESCAPE Slug penetrates Wall. H-55 Commando destroyed. Acquired 43 matter. Gauss Rifle fries itself beyond repair. FJ1IHRX/9QMXT|PYH